[Event "57th Biel Festival ATO 2024"]
[Site "Biel"]
[Date "2024.07.23"]
[Round "7.13"]
[White "Nergard, Ole-Kristian"]
[Black "Szelag, Zuzanna"]
[Result "0-1"]
[ECO "E62"]
[WhiteElo "1830"]
[BlackElo "1897"]
[Annotator "NA"]
[PlyCount "88"]
[EventDate "2024.07.03"]
[EventType "swiss"]
[EventCountry "SUI"]
[SourceTitle "playchess.com"]
[Source "ChessBase"]
[SourceQuality "1"]
[TimeControl "40/5400+30:1800+30"]

1. c4 {[%emt 0:01:44]} Nf6 {[%emt 0:00:11]} 2. Nf3 {[%emt 0:00:30]} g6 {[%emt 0:00:04]} 3. g3 {[%emt 0:00:08]} Bg7 {[%emt 0:00:12]} 4. Bg2 {[%emt 0:00:06]} O-O {[%emt 0:00:10]} 5. O-O {[%emt 0:00:53]} d6 {[%emt 0:00:07]} 6. d4 {[%emt 0:00:10]} Nc6 {[%emt 0:00:38]} 7. Nc3 {[%emt 0:05:09]} e5 {[%emt 0:01:14]} 8. dxe5 {[%emt 0:01:21]} dxe5 {[%emt 0:00:24]} 9. Qxd8 {[%emt 0:01:25]} Rxd8 {[%emt 0:00:05]} 10. Bg5 {[%emt 0:00:10]} Be6 {[%emt 0:01:52]} 11. Nd2 {[%emt 0:10:42]} h6 {[%emt 0:19:28]} 12. Bxf6 {[%emt 0:00:25]} Rxd2 {[%emt 0:00:51]} 13. Bxg7 {[%emt 0:02:14]} Kxg7 {[%emt 0:00:02]} 14. b3 {[%emt 0:01:47]} Rad8 {[%emt 0:02:22]} 15. Rfd1 {[%emt 0:14:18]} Bf5 {[%emt 0:07:14]} 16. Rxd2 {[%emt 0:12:34]} Rxd2 {[%emt 0:00:10]} 17. e3 {[%emt 0:04:08]} Nd8 {[%emt 0:22:38]} 18. Ne4 {[%emt 0:10:53]} Bxe4 {[%emt 0:01:03]} 19. Bxe4 {[%emt 0:00:03]} c6 {[%emt 0:00:59]} 20. Kf1 {[%emt 0:07:18]} f5 {[%emt 0:05:29]} 21. Ke1 {[%emt 0:00:35]} Rd7 {[%emt 0:02:44]} 22. Bg2 {[%emt 0:00:30]} e4 {[%emt 0:01:30]} 23. f3 {[%emt 0:03:26]} exf3 {[%emt 0:01:30]} 24. Bxf3 {[%emt 0:00:02]} Nf7 {[%emt 0:02:14]} 25. Rd1 {[%emt 0:00:49]} Rxd1+ {[%emt 0:00:36]} 26. Bxd1 {[%emt 0:05:15]} Kf6 {[%emt 0:01:41]} 27. Kd2 {[%emt 0:00:17]} Nd6 {[%emt 0:03:41]} 28. Kd3 {[%emt 0:02:35]} Ke5 {[%emt 0:01:58]} 29. Bf3 {[%emt 0:01:52]} c5 {[%emt 0:09:09]} 30. a3 {[%emt 0:05:32]} a5 {[%emt 0:02:58]} 31. Bd5 {[%emt 0:02:58]} g5 {[%emt 0:02:02]} 32. Bf3 {[%emt 0:00:56]} b6 {[%emt 0:02:07]} 33. g4 {[%emt 0:01:10]} fxg4 {[%emt 0:02:25]} 34. Bxg4 {[%emt 0:00:03]} Ne4 {[%emt 0:01:07]} 35. Bf3 {[%emt 0:00:54]} Nf6 {[%emt 0:00:43]} 36. h3 {[%emt 0:04:15]} h5 {[%emt 0:01:36]} 37. Bg2 {[%emt 0:00:46]} g4 {[%emt 0:00:47]} 38. hxg4 {[%emt 0:00:16]} Nxg4 {[%emt 0:00:50]} 39. Kc3 {[%emt 0:00:30]} Nxe3 {[%emt 0:00:24]} 40. Bh1 {[%emt 0:00:24]} h4 {[%emt 0:01:37]} 41. b4 {[%emt 0:30:50]} axb4+ {[%emt 0:05:03]} 42. axb4 {[%emt 0:00:00]} h3 {[%emt 0:01:52]} 43. b5 {[%emt 0:00:00]} h2 {[%emt 0:00:41]} 44. Kd3 {[%emt 0:00:00]} Nf1 {[%emt 0:00:11]} 0-1

[Event "57th Biel Festival ATO 2024"]
[Site "Biel"]
[Date "2024.07.23"]
[Round "7.14"]
[White "Schmid, Nicola"]
[Black "Paholok, Igor"]
[Result "1-0"]
[ECO "B06"]
[WhiteElo "1888"]
[BlackElo "1801"]
[Annotator "NA RC"]
[PlyCount "73"]
[EventDate "2024.07.03"]
[EventType "swiss"]
[EventCountry "SUI"]
[SourceTitle "playchess.com"]
[Source "ChessBase"]
[SourceQuality "1"]
[TimeControl "40/5400+30:1800+30"]

1. d4 {[%emt 0:00:04]} g6 {[%emt 0:07:08]} 2. e4 {[%emt 0:00:42]} Bg7 {[%emt 0:00:29]} 3. Nf3 {[%emt 0:01:56]} d6 {[%emt 0:00:17]} 4. h3 {[%emt 0:00:27]} Nd7 {[%emt 0:00:34]} 5. Bc4 {[%emt 0:00:30]} e6 {[%emt 0:08:22]} 6. O-O {[%emt 0:01:29]} Ne7 {[%emt 0:03:33]} 7. Nc3 {[%emt 0:02:47]} O-O {[%emt 0:00:55]} 8. Bg5 {[%emt 0:00:44]} h6 {[%emt 0:00:30]} 9. Bh4 {[%emt 0:02:01]} a6 {[%emt 0:08:43]} 10. a4 {[%emt 0:01:15]} c6 {[%emt 0:07:53]} 11. Re1 {[%emt 0:03:20]} Nf6 {[%emt 0:18:27]} 12. e5 {[%emt 0:11:04]} Nfd5 {[%emt 0:01:17]} 13. Ne4 {[%emt 0:00:38]} dxe5 {[%emt 0:04:18]} 14. dxe5 {[%emt 0:00:39]} Qc7 {[%emt 0:03:46]} 15. Nf6+ {[%emt 0:05:46]} Bxf6 {[%emt 0:02:11]} 16. exf6 {[%emt 0:08:12]} Nf5 {[%emt 0:00:18]} 17. Re4 {[%emt 0:00:41]} Nxh4 {[%emt 0:02:05]} 18. Rxh4 {[%emt 0:00:11]} Nxf6 {[%emt 0:01:01]} 19. Qd2 {[%emt 0:01:05]} h5 {[%emt 0:05:41]} 20. Qh6 {[%emt 0:04:55]} Nh7 {[%emt 0:00:47]} 21. g4 {[%emt 0:01:22]} f6 {[%emt 0:00:17]} 22. Qxg6+ {[%emt 0:01:05]} Qg7 {[%emt 0:00:29]} 23. Qxh5 {[%emt 0:02:49]} b5 {[%emt 0:05:33]} 24. Bd3 {[%emt 0:01:34]} Ng5 {[%emt 0:01:03]} 25. Nxg5 {[%emt 0:02:28]} fxg5 {[%emt 0:00:35]} 26. Bh7+ {[%emt 0:00:35]} Kh8 {[%emt 0:00:50]} 27. Bg6+ {[%emt 0:01:36]} Kg8 {[%emt 0:00:15]} 28. Qxg5 {[%emt 0:01:07]} Rf6 {[%emt 0:04:02]} 29. Bh7+ {[%emt 0:03:26]} Kf8 {[%emt 0:01:36]} 30. Qc5+ {[%emt 0:04:30]} Qe7 {[%emt 0:01:08]} 31. Qxe7+ {[%emt 0:00:28]} Kxe7 {[%emt 0:00:26]} 32. Be4 {[%emt 0:00:07]} Bb7 {[%emt 0:03:23]} 33. Rh7+ {[%emt 0:00:25]} Rf7 {[%emt 0:00:11]} 34. Rxf7+ {[%emt 0:00:17]} Kxf7 {[%emt 0:00:08]} 35. axb5 {[%emt 0:00:04]} axb5 {[%emt 0:00:30]} 36. Rxa8 {[%emt 0:00:28]} Bxa8 {[%emt 0:00:07]} 37. f4 {[%emt 0:00:22]} 1-0

[Event "57th Biel Festival ATO 2024"]
[Site "Biel"]
[Date "2024.07.23"]
[Round "7.15"]
[White "Pantillon, Patrick Andre"]
[Black "Dreke, Frank"]
[Result "1-0"]
[ECO "C11"]
[WhiteElo "1782"]
[BlackElo "1915"]
[Annotator "RC"]
[PlyCount "48"]
[EventDate "2024.07.03"]
[EventType "swiss"]
[EventCountry "SUI"]
[SourceTitle "playchess.com"]
[Source "ChessBase"]
[SourceQuality "1"]
[TimeControl "40/5400+30:1800+30"]

1. Nc3 {[%emt 0:00:13]} d5 {[%emt 0:00:09]} 2. e4 {[%emt 0:00:30]} Nf6 {[%emt 0:00:06]} 3. e5 {[%emt 0:07:10]} Nfd7 {[%emt 0:00:02]} 4. f4 {[%emt 0:00:39]} e6 {[%emt 0:00:14]} 5. Nf3 {[%emt 0:00:49]} Be7 {[%emt 0:01:17]} 6. d4 {[%emt 0:08:05]} c5 {[%emt 0:00:51]} 7. Be3 {[%emt 0:00:32]} O-O {[%emt 0:02:46]} 8. Bd3 {[%emt 0:02:57]} c4 {[%emt 0:01:37]} 9. Bxh7+ {[%emt 0:06:43]} Kxh7 {[%emt 0:00:31]} 10. Ng5+ {[%emt 0:00:26]} Bxg5 {[%emt 0:00:49]} 11. fxg5 {[%emt 0:00:08]} Nc6 {[%emt 0:01:47]} 12. Qh5+ {[%emt 0:02:24]} Kg8 {[%emt 0:00:01]} 13. O-O {[%emt 0:00:57]} Ne7 {[%emt 0:07:29]} 14. Rf3 {[%emt 0:01:03]} g6 {[%emt 0:00:37]} 15. Qh6 {[%emt 0:03:10]} Nf5 {[%emt 0:05:58]} 16. Rxf5 {[%emt 0:00:15]} gxf5 {[%emt 0:10:05]} 17. Rf1 {[%emt 0:00:54]} Re8 {[%emt 0:09:07]} 18. Rxf5 {[%emt 0:13:09]} exf5 {[%emt 0:04:57]} 19. Nxd5 {[%emt 0:00:17]} Re6 {[%emt 0:00:24]} 20. Nf6+ {[%emt 0:00:19]} Nxf6 {[%emt 0:10:49]} 21. gxf6 {[%emt 0:00:19]} Qf8 {[%emt 0:00:01]} 22. Qg5+ {[%emt 0:00:30]} Kh7 {[%emt 0:00:30]} 23. Qh5+ {[%emt 0:00:27]} Kg8 {[%emt 0:00:00]} 24. Bh6 {[%emt 0:00:34]} Rxe5 {[%emt 0:05:45]} 1-0

[Event "57th Biel Festival ATO 2024"]
[Site "Biel"]
[Date "2024.07.23"]
[Round "7.17"]
[White "Coletta, Julien"]
[Black "Kalbermatter, Philipp"]
[Result "0-1"]
[ECO "C01"]
[WhiteElo "1778"]
[BlackElo "1912"]
[Annotator "ChessBase"]
[PlyCount "56"]
[EventDate "2024.07.03"]
[EventType "swiss"]
[EventCountry "SUI"]
[SourceTitle "playchess.com"]
[Source "ChessBase"]
[SourceQuality "1"]
[TimeControl "40/5400+30:1800+30"]

1. e4 {[%emt 0:00:03]} e6 {[%emt 0:00:27]} 2. d4 {[%emt 0:00:06]} d5 {[%emt 0:00:56]} 3. exd5 {[%emt 0:00:06]} exd5 {[%emt 0:00:00]} 4. c4 {[%emt 0:00:06]} Nf6 {[%emt 0:01:11]} 5. Nc3 {[%emt 0:00:09]} Be7 {[%emt 0:03:43]} 6. Nf3 {[%emt 0:00:13]} O-O {[%emt 0:03:28]} 7. cxd5 {[%emt 0:01:38]} Nxd5 {[%emt 0:03:01]} 8. Bc4 {[%emt 0:01:45]} Nb6 {[%emt 0:10:49]} 9. Bd3 {[%emt 0:00:31]} N8d7 {[%emt 0:08:50]} 10. O-O {[%emt 0:02:19]} Nf6 {[%emt 0:01:45]} 11. Bc2 {[%emt 0:14:36]} Bg4 {[%emt 0:03:24]} 12. Re1 {[%emt 0:10:37]} Re8 {[%emt 0:01:30]} 13. h3 {[%emt 0:04:13]} Bh5 {[%emt 0:01:01]} 14. Bg5 {[%emt 0:07:45]} c6 {[%emt 0:03:09]} 15. g4 {[%emt 0:02:09]} Bg6 {[%emt 0:00:31]} 16. Bb3 {[%emt 0:03:52]} Nfd5 {[%emt 0:07:45]} 17. Bxe7 {[%emt 0:00:47]} Rxe7 {[%emt 0:00:44]} 18. Rxe7 {[%emt 0:02:47]} Nxe7 {[%emt 0:02:18]} 19. Ne5 {[%emt 0:02:02]} Nbd5 {[%emt 0:12:45]} 20. Qd2 {[%emt 0:05:52]} Qd6 {[%emt 0:04:19]} 21. f4 {[%emt 0:03:46]} f6 {[%emt 0:03:07]} 22. Nxg6 {[%emt 0:06:45]} hxg6 {[%emt 0:00:25]} 23. Kf2 {[%emt 0:06:24]} Kf8 {[%emt 0:01:58]} 24. Kf3 {[%emt 0:00:13]} g5 {[%emt 0:06:09]} 25. Nxd5 {[%emt 0:04:21]} Nxd5 {[%emt 0:02:41]} 26. fxg5 {[%emt 0:00:18]} Re8 {[%emt 0:00:43]} 27. gxf6 {[%emt 0:09:04]} Qxf6+ {[%emt 0:09:01]} 28. Kg2 {[%emt 0:01:30]} Re2+ {[%emt 0:02:37]} 0-1

[Event "57th Biel Festival ATO 2024"]
[Site "Biel"]
[Date "2024.07.23"]
[Round "7.18"]
[White "Rossi, Jonas"]
[Black "Leuenberger, Urs"]
[Result "0-1"]
[ECO "C14"]
[WhiteElo "1796"]
[BlackElo "1903"]
[Annotator "ChessBase"]
[PlyCount "94"]
[EventDate "2024.07.03"]
[EventType "swiss"]
[EventCountry "SUI"]
[SourceTitle "playchess.com"]
[Source "ChessBase"]
[SourceQuality "1"]
[TimeControl "40/5400+30:1800+30"]

1. d4 {[%emt 0:00:03]} Nf6 {[%emt 0:00:21]} 2. Bg5 {[%emt 0:00:09]} e6 {[%emt 0:01:32]} 3. e4 {[%emt 0:00:06]} Be7 {[%emt 0:00:09]} 4. e5 {[%emt 0:00:07]} Nd5 {[%emt 0:00:58]} 5. Bxe7 {[%emt 0:00:08]} Nxe7 {[%emt 0:01:05]} 6. Nc3 {[%emt 0:00:06]} d5 {[%emt 0:00:36]} 7. Qd2 {[%emt 0:00:14]} Bd7 {[%emt 0:02:27]} 8. O-O-O {[%emt 0:01:50]} b6 {[%emt 0:02:34]} 9. h4 {[%emt 0:04:51]} c5 {[%emt 0:00:46]} 10. Nf3 {[%emt 0:02:47]} a6 {[%emt 0:06:39]} 11. Ne2 {[%emt 0:09:35]} Nbc6 {[%emt 0:01:28]} 12. c3 {[%emt 0:06:40]} Qc7 {[%emt 0:05:01]} 13. Kb1 {[%emt 0:00:38]} Na5 {[%emt 0:02:03]} 14. Ng3 {[%emt 0:06:15]} h6 {[%emt 0:12:13]} 15. Bd3 {[%emt 0:03:54]} Bb5 {[%emt 0:01:22]} 16. Nh5 {[%emt 0:05:53]} Bxd3+ {[%emt 0:12:25]} 17. Qxd3 {[%emt 0:00:09]} Kf8 {[%emt 0:00:12]} 18. g4 {[%emt 0:12:11]} Nc4 {[%emt 0:09:06]} 19. Nd2 {[%emt 0:07:57]} b5 {[%emt 0:01:07]} 20. f4 {[%emt 0:00:47]} g6 {[%emt 0:05:27]} 21. Ng3 {[%emt 0:03:16]} Nxd2+ {[%emt 0:07:00]} 22. Qxd2 {[%emt 0:07:23]} Ke8 {[%emt 0:11:03]} 23. h5 {[%emt 0:08:19]} Kd7 {[%emt 0:01:07]} 24. Qf2 {[%emt 0:03:07]} c4 {[%emt 0:06:30]} 25. f5 {[%emt 0:07:11]} gxf5 {[%emt 0:04:33]} 26. gxf5 {[%emt 0:00:08]} Raf8 {[%emt 0:02:15]} 27. Rdg1 {[%emt 0:01:57]} Qd8 {[%emt 0:00:45]} 28. f6 {[%emt 0:01:35]} Nc6 {[%emt 0:00:15]} 29. Ne2 {[%emt 0:00:16]} Rfg8 {[%emt 0:00:56]} 30. Qf4 {[%emt 0:00:33]} Qf8 {[%emt 0:00:14]} 31. Qe3 {[%emt 0:02:49]} b4 {[%emt 0:00:22]} 32. Nf4 {[%emt 0:01:32]} bxc3 {[%emt 0:00:28]} 33. Qxc3 {[%emt 0:00:34]} Rxg1+ {[%emt 0:01:55]} 34. Rxg1 {[%emt 0:00:05]} Rg8 {[%emt 0:00:09]} 35. Qe3 {[%emt 0:02:01]} c3 {[%emt 0:01:43]} 36. bxc3 {[%emt 0:02:13]} Na5 {[%emt 0:00:08]} 37. Rxg8 {[%emt 0:00:22]} Qxg8 {[%emt 0:00:08]} 38. Qf2 {[%emt 0:00:34]} Nc4 {[%emt 0:00:16]} 39. Kc2 {[%emt 0:01:00]} Qb8 {[%emt 0:00:46]} 40. Nd3 {[%emt 0:00:41]} Qg8 {[%emt 0:01:28]} 41. Nc5+ {[%emt 0:09:26]} Kc8 {[%emt 0:04:48]} 42. Qe2 {[%emt 0:06:50]} Qg5 {[%emt 0:03:46]} 43. Nxa6 {[%emt 0:03:25]} Qf5+ {[%emt 0:00:38]} 44. Kb3 {[%emt 0:08:07]} Qb1+ {[%emt 0:00:26]} 45. Ka4 {[%emt 0:00:10]} Qc1 {[%emt 0:06:07]} 46. Kb5 {[%emt 0:03:26]} Qa3 {[%emt 0:01:44]} 47. Nc5 {[%emt 0:02:09]} Qa5+ {[%emt 0:00:16]} 0-1

[Event "57th Biel Festival ATO 2024"]
[Site "Biel"]
[Date "2024.07.23"]
[Round "7.19"]
[White "Keymer, Cecilia"]
[Black "Panda, Gyorgy"]
[Result "1/2-1/2"]
[ECO "D55"]
[WhiteElo "1865"]
[BlackElo "1713"]
[Annotator "NA"]
[PlyCount "87"]
[EventDate "2024.07.03"]
[EventType "swiss"]
[EventCountry "SUI"]
[SourceTitle "playchess.com"]
[Source "ChessBase"]
[SourceQuality "1"]
[TimeControl "40/5400+30:1800+30"]

1. d4 {[%emt 0:00:03]} d5 {[%emt 0:00:20]} 2. c4 {[%emt 0:00:09]} e6 {[%emt 0:00:11]} 3. Nf3 {[%emt 0:01:20]} Nf6 {[%emt 0:00:20]} 4. Nc3 {[%emt 0:01:00]} Be7 {[%emt 0:00:08]} 5. cxd5 {[%emt 0:03:27]} exd5 {[%emt 0:00:20]} 6. Bg5 {[%emt 0:01:54]} O-O {[%emt 0:01:14]} 7. e3 {[%emt 0:01:26]} b6 {[%emt 0:00:21]} 8. Bd3 {[%emt 0:01:09]} Bb7 {[%emt 0:00:13]} 9. O-O {[%emt 0:03:58]} Nbd7 {[%emt 0:00:06]} 10. Rc1 {[%emt 0:05:51]} Rc8 {[%emt 0:01:46]} 11. Nb5 {[%emt 0:07:08]} c5 {[%emt 0:13:58]} 12. Bf4 {[%emt 0:11:14]} Ne4 {[%emt 0:03:36]} 13. Nd2 {[%emt 0:08:48]} a6 {[%emt 0:11:09]} 14. Nc3 {[%emt 0:03:58]} Ndf6 {[%emt 0:01:21]} 15. Ndxe4 {[%emt 0:04:53]} Nxe4 {[%emt 0:03:41]} 16. f3 {[%emt 0:01:35]} Nf6 {[%emt 0:02:48]} 17. a4 {[%emt 0:04:50]} Qd7 {[%emt 0:06:33]} 18. Qc2 {[%emt 0:01:58]} g6 {[%emt 0:08:57]} 19. Rfd1 {[%emt 0:02:38]} cxd4 {[%emt 0:05:37]} 20. exd4 {[%emt 0:00:31]} Rfe8 {[%emt 0:00:51]} 21. Qb3 {[%emt 0:02:42]} Qd8 {[%emt 0:04:47]} 22. Re1 {[%emt 0:01:47]} Nh5 {[%emt 0:02:35]} 23. Be3 {[%emt 0:05:36]} Qd6 {[%emt 0:00:51]} 24. Bf1 {[%emt 0:06:39]} Bd8 {[%emt 0:05:15]} 25. Ne2 {[%emt 0:01:49]} Rxc1 {[%emt 0:09:13]} 26. Rxc1 {[%emt 0:02:27]} h6 {[%emt 0:01:45]} 27. g3 {[%emt 0:01:39]} Qe6 {[%emt 0:03:47]} 28. Bd2 {[%emt 0:01:33]} Kh7 {[%emt 0:01:07]} 29. Qd3 {[%emt 0:01:15]} Ng7 {[%emt 0:01:13]} 30. Nf4 {[%emt 0:02:04]} Qd7 {[%emt 0:01:31]} 31. b3 {[%emt 0:01:49]} Kg8 {[%emt 0:02:46]} 32. Bh3 {[%emt 0:02:09]} Qd6 {[%emt 0:00:40]} 33. Be3 {[%emt 0:03:34]} Bg5 {[%emt 0:01:14]} 34. Qd2 {[%emt 0:00:50]} Kh7 {[%emt 0:01:06]} 35. Ng2 {[%emt 0:01:20]} Bxe3+ {[%emt 0:00:39]} 36. Nxe3 {[%emt 0:00:05]} h5 {[%emt 0:00:55]} 37. Qd3 {[%emt 0:02:18]} Qe7 {[%emt 0:00:41]} 38. Re1 {[%emt 0:00:39]} Qf6 {[%emt 0:00:25]} 39. Kf2 {[%emt 0:00:48]} Re7 {[%emt 0:02:20]} 40. Rc1 {[%emt 0:00:42]} Ne6 {[%emt 0:00:24]} 41. Bxe6 {[%emt 0:07:16]} Qxe6 {[%emt 0:01:05]} 42. Ng2 {[%emt 0:02:05]} Qf6 {[%emt 0:02:41]} 43. Nf4 {[%emt 0:02:02]} Kh6 {[%emt 0:00:25]} 44. Qd2 {[%emt 0:02:32]} 1/2-1/2

[Event "57th Biel Festival ATO 2024"]
[Site "Biel"]
[Date "2024.07.23"]
[Round "7.20"]
[White "Lang, Jochen"]
[Black "Bracher, Juerg"]
[Result "1/2-1/2"]
[ECO "D02"]
[WhiteElo "1755"]
[BlackElo "1864"]
[Annotator "NA"]
[PlyCount "75"]
[EventDate "2024.07.03"]
[EventType "swiss"]
[EventCountry "SUI"]
[SourceTitle "playchess.com"]
[Source "ChessBase"]
[SourceQuality "1"]
[TimeControl "40/5400+30:1800+30"]

1. d4 {[%emt 0:00:08]} d5 {[%emt 0:00:06]} 2. Bf4 {[%emt 0:00:21]} c6 {[%emt 0:00:43]} 3. Nf3 {[%emt 0:00:40]} Nf6 {[%emt 0:00:10]} 4. e3 {[%emt 0:00:59]} Bg4 {[%emt 0:04:55]} 5. h3 {[%emt 0:02:56]} Bf5 {[%emt 0:00:18]} 6. Bd3 {[%emt 0:00:38]} Bxd3 {[%emt 0:04:59]} 7. Qxd3 {[%emt 0:00:33]} e6 {[%emt 0:00:25]} 8. Nbd2 {[%emt 0:00:33]} Bd6 {[%emt 0:01:43]} 9. Ne5 {[%emt 0:04:52]} Qe7 {[%emt 0:02:39]} 10. g4 {[%emt 0:06:21]} Nbd7 {[%emt 0:09:26]} 11. Qb3 {[%emt 0:04:36]} Rb8 {[%emt 0:14:49]} 12. Qd3 {[%emt 0:05:43]} Nf8 {[%emt 0:07:22]} 13. Rg1 {[%emt 0:03:21]} Ng6 {[%emt 0:00:15]} 14. Bg3 {[%emt 0:02:35]} Nd7 {[%emt 0:04:33]} 15. f4 {[%emt 0:07:22]} c5 {[%emt 0:08:45]} 16. c3 {[%emt 0:02:27]} c4 {[%emt 0:01:26]} 17. Qc2 {[%emt 0:00:28]} b5 {[%emt 0:00:40]} 18. Nc6 {[%emt 0:00:21]} Qf8 {[%emt 0:01:41]} 19. Nxb8 {[%emt 0:01:23]} Nxb8 {[%emt 0:00:20]} 20. a3 {[%emt 0:02:17]} Nc6 {[%emt 0:00:45]} 21. O-O-O {[%emt 0:04:29]} Kd7 {[%emt 0:02:34]} 22. f5 {[%emt 0:01:20]} Nge7 {[%emt 0:02:20]} 23. fxe6+ {[%emt 0:01:27]} fxe6 {[%emt 0:00:19]} 24. Bxd6 {[%emt 0:02:01]} Kxd6 {[%emt 0:00:10]} 25. Rdf1 {[%emt 0:00:19]} Qe8 {[%emt 0:01:54]} 26. e4 {[%emt 0:01:39]} a5 {[%emt 0:02:59]} 27. exd5 {[%emt 0:03:12]} exd5 {[%emt 0:01:39]} 28. Nf3 {[%emt 0:02:22]} Ng6 {[%emt 0:01:18]} 29. Qh2+ {[%emt 0:01:03]} Kd7 {[%emt 0:00:25]} 30. Re1 {[%emt 0:01:52]} Qd8 {[%emt 0:02:33]} 31. Ne5+ {[%emt 0:00:41]} Ngxe5 {[%emt 0:01:40]} 32. dxe5 {[%emt 0:00:26]} Re8 {[%emt 0:02:02]} 33. Qf4 {[%emt 0:02:22]} Re6 {[%emt 0:03:52]} 34. Rgf1 {[%emt 0:01:18]} b4 {[%emt 0:01:08]} 35. Qf7+ {[%emt 0:01:42]} Qe7 {[%emt 0:00:44]} 36. Qxe7+ {[%emt 0:01:10]} Kxe7 {[%emt 0:00:10]} 37. axb4 {[%emt 0:03:44]} axb4 {[%emt 0:00:10]} 38. Kc2 {[%emt 0:06:45]} 1/2-1/2

[Event "57th Biel Festival ATO 2024"]
[Site "Biel"]
[Date "2024.07.23"]
[Round "7.21"]
[White "Jaggy, Enzo"]
[Black "Shin, Seungmin"]
[Result "1-0"]
[ECO "A46"]
[WhiteElo "1835"]
[BlackElo "1493"]
[Annotator "NA RC"]
[PlyCount "107"]
[EventDate "2024.07.03"]
[EventType "swiss"]
[EventCountry "SUI"]
[SourceTitle "playchess.com"]
[Source "ChessBase"]
[SourceQuality "1"]
[TimeControl "40/5400+30:1800+30"]

1. d4 {[%emt 0:00:11]} Nf6 {[%emt 0:00:08]} 2. Nf3 {[%emt 0:00:06]} e6 {[%emt 0:00:03]} 3. e3 {[%emt 0:00:08]} c5 {[%emt 0:00:06]} 4. c3 {[%emt 0:00:08]} d5 {[%emt 0:00:05]} 5. Be2 {[%emt 0:00:14]} Nbd7 $11 {[%emt 0:00:24]} 6. O-O {[%emt 0:00:24]} Bd6 {[%emt 0:00:11]} 7. dxc5 {[%emt 0:00:06]} Nxc5 {[%emt 0:02:36]} 8. b4 {[%emt 0:00:21]} Nce4 {[%emt 0:00:59]} 9. Bb2 {[%emt 0:00:25]} Bc7 {[%emt 0:01:49]} 10. Nbd2 {[%emt 0:01:56]} O-O {[%emt 0:00:42]} 11. c4 {[%emt 0:00:38]} Nxd2 {[%emt 0:02:54]} 12. Qxd2 {[%emt 0:00:41]} dxc4 {[%emt 0:03:12]} 13. Qxd8 {[%emt 0:01:05]} Rxd8 {[%emt 0:01:44]} 14. Bxc4 {[%emt 0:00:09]} b6 {[%emt 0:03:30]} 15. Rac1 {[%emt 0:05:23]} Bd6 {[%emt 0:00:57]} 16. a3 {[%emt 0:05:10]} Bb7 {[%emt 0:03:25]} 17. Ne5 {[%emt 0:07:28]} Rac8 {[%emt 0:06:30]} 18. Rfd1 {[%emt 0:08:49]} h6 {[%emt 0:15:24]} 19. b5 {[%emt 0:09:06]} Bxe5 {[%emt 0:02:37]} 20. Rxd8+ {[%emt 0:00:12]} Rxd8 {[%emt 0:00:13]} 21. Bxe5 {[%emt 0:00:10]} Rc8 {[%emt 0:01:12]} 22. Bb2 {[%emt 0:03:45]} Bd5 {[%emt 0:02:27]} 23. Bd3 {[%emt 0:05:21]} Rxc1+ {[%emt 0:06:24]} 24. Bxc1 {[%emt 0:00:13]} Ne4 {[%emt 0:00:16]} 25. f3 {[%emt 0:03:18]} Nc5 {[%emt 0:00:12]} 26. Be2 {[%emt 0:01:40]} Nb3 {[%emt 0:03:29]} 27. Bb2 {[%emt 0:03:09]} f6 {[%emt 0:00:34]} 28. e4 {[%emt 0:00:39]} Bb7 {[%emt 0:00:14]} 29. Bc4 {[%emt 0:00:18]} Na5 {[%emt 0:01:14]} 30. Bxe6+ {[%emt 0:00:10]} Kf8 {[%emt 0:00:08]} 31. Kf2 {[%emt 0:02:47]} Ke7 {[%emt 0:00:17]} 32. Ba2 {[%emt 0:00:07]} Kd6 {[%emt 0:00:11]} 33. a4 {[%emt 0:00:16]} h5 {[%emt 0:01:54]} 34. Ke3 {[%emt 0:01:27]} a6 {[%emt 0:01:14]} 35. Ba3+ {[%emt 0:00:41]} Kd7 {[%emt 0:00:26]} 36. g4 {[%emt 0:01:34]} hxg4 {[%emt 0:00:22]} 37. fxg4 {[%emt 0:00:09]} axb5 {[%emt 0:00:21]} 38. axb5 {[%emt 0:00:08]} Ke8 {[%emt 0:00:51]} 39. Be6 {[%emt 0:01:26]} Bc8 {[%emt 0:01:07]} 40. Bxc8 {[%emt 0:00:33]} Nc4+ {[%emt 0:00:07]} 41. Kf4 {[%emt 0:30:20]} Nxa3 {[%emt 0:30:09]} 42. Bb7 {[%emt 0:00:16]} Ke7 {[%emt 0:00:18]} 43. Bc6 {[%emt 0:00:08]} Nc2 {[%emt 0:00:45]} 44. e5 {[%emt 0:01:23]} Nd4 {[%emt 0:01:11]} 45. exf6+ {[%emt 0:02:51]} Kxf6 {[%emt 0:00:11]} 46. g5+ {[%emt 0:00:25]} Ke6 {[%emt 0:00:20]} 47. h4 {[%emt 0:05:42]} Nxc6 {[%emt 0:00:32]} 48. bxc6 {[%emt 0:00:13]} b5 {[%emt 0:00:22]} 49. c7 {[%emt 0:00:33]} Kd7 {[%emt 0:00:05]} 50. h5 {[%emt 0:00:12]} b4 {[%emt 0:00:11]} 51. h6 {[%emt 0:00:16]} gxh6 {[%emt 0:00:30]} 52. gxh6 {[%emt 0:00:14]} b3 {[%emt 0:00:03]} 53. h7 {[%emt 0:00:05]} b2 {[%emt 0:00:17]} 54. c8=Q+ {[%emt 0:00:06]} 1-0

[Event "57th Biel Festival ATO 2024"]
[Site "Biel"]
[Date "2024.07.23"]
[Round "7.22"]
[White "Svendsen, Hannelore"]
[Black "Ernst, Heinz"]
[Result "1/2-1/2"]
[ECO "E01"]
[WhiteElo "1753"]
[BlackElo "1830"]
[Annotator "NA RC"]
[PlyCount "42"]
[EventDate "2024.07.03"]
[EventType "swiss"]
[EventCountry "SUI"]
[SourceTitle "playchess.com"]
[Source "ChessBase"]
[SourceQuality "1"]
[TimeControl "40/5400+30:1800+30"]

1. d4 {[%emt 0:00:06]} d5 {[%emt 0:00:17]} 2. c4 {[%emt 0:00:13]} e6 {[%emt 0:00:23]} 3. Nf3 {[%emt 0:00:15]} Nf6 {[%emt 0:00:29]} 4. g3 {[%emt 0:00:21]} c5 {[%emt 0:00:30]} 5. cxd5 {[%emt 0:00:48]} exd5 {[%emt 0:00:14]} 6. Bg2 {[%emt 0:00:27]} Nc6 {[%emt 0:00:13]} 7. dxc5 {[%emt 0:01:51]} Bxc5 {[%emt 0:01:11]} 8. a3 {[%emt 0:02:02]} O-O {[%emt 0:00:59]} 9. O-O {[%emt 0:00:15]} h6 {[%emt 0:07:50]} 10. b4 {[%emt 0:02:16]} Bd6 {[%emt 0:04:45]} 11. Bb2 {[%emt 0:01:17]} Be6 {[%emt 0:00:49]} 12. Nbd2 {[%emt 0:02:17]} Qe7 {[%emt 0:07:10]} 13. Rc1 {[%emt 0:04:46]} Rad8 {[%emt 0:04:00]} 14. Nb3 {[%emt 0:04:09]} a6 {[%emt 0:03:59]} 15. Nbd4 {[%emt 0:04:03]} Nxd4 {[%emt 0:03:41]} 16. Bxd4 {[%emt 0:00:42]} Rfe8 {[%emt 0:08:00]} 17. e3 {[%emt 0:00:36]} Bg4 {[%emt 0:13:20]} 18. Qb3 {[%emt 0:06:27]} Be6 {[%emt 0:06:13]} 19. Nd2 {[%emt 0:05:33]} Ne4 {[%emt 0:02:07]} 20. Qb2 {[%emt 0:03:11]} Nxd2 {[%emt 0:03:32]} 21. Qxd2 {[%emt 0:00:22]} Rc8 {[%emt 0:02:55]} 1/2-1/2